bitfinex-derivatives/quotes_SOLF0:USTF0_20220102
["timestamp","ask_amount","ask_price","bid_price","bid_amount"]
[1641103310333,4.00737692,176.45,176.39,5.30800161]
[1641103311034,45.7452,176.46,176.39,5.30800161]
[1641103311234,49.75247725,176.46,176.4,4.00737692]
[1641103311935,45.7452,176.46,176.39,1.30062469]
[1641103312537,4.00736279,176.45,176.39,5.30798748]
[1641103313237,4.0073429,176.46,176.4,4.00736279]
[1641103313838,46.9592,176.48,176.4,4.00736279]
[1641103314039,7.00725987,176.47,176.4,4.00736279]
[1641103314740,3.0,176.47,176.4,4.00736279]
[1641103314938,4.00747982,176.45,176.39,5.30798748]
[1641103315539,3.0,176.47,176.39,5.30798748]
[1641103315739,52.6742,176.48,176.39,5.30798748]
[1641103316140,27.66479,176.46,176.39,5.30798748]
[1641103316340,4.0075288,176.45,176.39,5.30798748]
[1641103316740,2.7069193,176.47,176.39,5.30798748]
[1641103316941,4.00731711,176.46,176.4,4.00736279]
[1641103317646,2.70660914,176.47,176.4,4.00736279]
[1641103318243,4.00723311,176.46,176.4,4.00736279]
[1641103319046,4.00713709,176.47,176.41,4.00736279]
[1641103319546,43.9592,176.48,176.39,1.30062469]
[1641103319744,6.768,176.47,176.39,1.30062469]
[1641103319946,43.9592,176.48,176.39,1.30062469]
[1641103320145,4.00713131,176.47,176.41,4.00713131]
[1641103320748,43.9592,176.48,176.43,4.02394955]
[1641103320948,4.02394955,176.44,176.43,4.02394955]
[1641103321848,59.0347548,176.48,176.39,19.53716344]
[1641103322248,56.0347548,176.48,176.39,19.53716344]
[1641103322451,4.02395763,176.44,176.43,4.02395763]
[1641103322949,56.0347548,176.48,176.39,19.53716344]
[1641103323651,4.01946496,176.44,176.43,4.01946496]
[1641103324250,4.924,176.44,176.39,19.53716344]
[1641103325550,4.924,176.44,176.39,13.3715833]
[1641103325752,4.01985835,176.43,176.41,4.01985835]
[1641103326351,8.94354316,176.44,176.42,4.01954316]
[1641103327151,4.924,176.44,176.38,39.73574861]
[1641103327352,4.01968108,176.43,176.39,1.30462567]
[1641103327752,4.924,176.44,176.42,4.01966855]
[1641103328551,4.01964002,176.44,176.39,1.30462567]
[1641103329050,56.0347548,176.48,176.39,1.30462567]
[1641103329452,4.01946161,176.45,176.43,4.01946161]
[1641103330255,4.01946161,176.45,176.43,31.68425161]
[1641103330453,4.01946161,176.45,176.43,27.66479]
[1641103330454,5.266,176.45,176.43,27.66479]
[1641103331256,9.28544387,176.45,176.43,31.68423387]
[1641103331853,5.266,176.45,176.43,27.66479]
[1641103332252,9.28537955,176.45,176.43,31.68416955]
[1641103333459,5.266,176.45,176.43,27.66479]
[1641103334256,4.01927785,176.46,176.44,5.32394385]
[1641103334655,12.0755548,176.5,176.43,27.66479]
[1641103335455,4.0191409,176.46,176.44,5.32382059]
[1641103336756,4.0191409,176.46,176.44,4.0191409]
[1641103336957,4.0191409,176.45,176.43,31.6839309]
[1641103337859,4.0191409,176.45,176.43,4.0191409]
[1641103338558,2.71446121,176.47,176.44,4.0191409]
[1641103341960,2.71446121,176.47,176.43,4.0191409]
[1641103343062,2.71446121,176.47,176.44,4.0191409]
[1641103343763,2.71446121,176.47,176.43,4.0191409]
[1641103345263,2.71446121,176.47,176.44,4.0191409]
[1641103348471,2.71446121,176.47,176.43,4.0191409]
[1641103349572,30.37925121,176.47,176.43,4.0191409]
[1641103349974,42.45480601,176.47,176.42,4.0191409]
[1641103350472,2.71446121,176.46,176.43,4.0191409]
[1641103351275,2.71446121,176.46,176.42,4.0191409]
[1641103351476,35.58625121,176.46,176.42,4.0191409]
[1641103351676,32.87179,176.46,176.42,4.0191409]
[1641103352377,2.71446121,176.45,176.41,5.32526061]
[1641103353579,12.0755548,176.44,176.4,5.32526061]
[1641103358185,39.7403448,176.44,176.4,5.32526061]
[1641103358686,4.02465742,176.41,176.4,5.32526061]
[1641103359588,4.02465742,176.41,176.37,12.07095861]
[1641103360589,4.02465742,176.43,176.38,4.00919995]
[1641103361188,4.02465742,176.44,176.38,4.00919995]
[1641103361990,4.02465742,176.43,176.38,4.00919995]
[1641103363790,10.45565742,176.43,176.38,4.00919995]
[1641103364390,27.66479,176.42,176.37,5.31531966]
[1641103364791,4.02465742,176.43,176.37,5.31531966]
[1641103367296,3.0,176.41,176.37,5.31531966]
[1641103367495,7.161,176.41,176.37,5.31531966]
[1641103367697,3.0,176.4,176.37,5.31531966]
[1641103367897,4.161,176.41,176.37,5.31531966]
[1641103368295,31.82579,176.41,176.37,5.31531966]
[1641103368896,4.02465742,176.39,176.34,4.00919995]
[1641103371799,2.70839364,176.4,176.36,4.00919995]
[1641103371800,4.02465742,176.37,176.36,4.00919995]
[1641103372001,10.02265742,176.37,176.36,4.00919995]
[1641103372699,10.02265742,176.37,176.33,1.30611971]
[1641103373101,10.02265742,176.37,176.33,13.37707832]
[1641103374501,5.998,176.37,176.34,12.07095861]
[1641103374701,4.02465742,176.38,176.34,12.07095861]
[1641103376805,4.02465742,176.39,176.35,12.07095861]
[1641103378904,4.02465742,176.39,176.35,13.37707832]
[1641103379706,4.02465742,176.4,176.37,4.01642423]
[1641103386008,4.02465742,176.4,176.37,8.22142423]
[1641103390116,4.02465742,176.4,176.38,3.0]
[1641103390918,4.02465742,176.39,176.38,8.32241201]
[1641103391615,4.02465742,176.39,176.38,4.30598778]
[1641103391823,4.02465742,176.43,176.38,10.45886296]
[1641103392417,4.02465742,176.46,176.39,5.31227939]
[1641103392617,31.68944742,176.46,176.39,8.31227939]
[1641103392918,31.68944742,176.46,176.43,3.0]
[1641103393119,12.0755548,176.5,176.44,3.0]
[1641103393318,12.0755548,176.5,176.45,3.0]
[1641103393918,12.0755548,176.5,176.46,3.0]
[1641103394120,2.70473161,176.51,176.45,3.0]
[1641103394621,2.70473161,176.51,176.45,30.66479]
[1641103395021,43.5922,176.52,176.45,30.66479]
[1641103395222,3.0,176.53,176.45,25.56183319]
[1641103395825,27.66479,176.54,176.45,25.56183319]
[1641103396223,2.70404519,176.52,176.45,25.56183319]
[1641103396623,3.0,176.51,176.45,25.56183319]
[1641103397627,3.0,176.48,176.45,25.56183319]
[1641103397826,6.723,176.48,176.45,25.56183319]
[1641103398329,6.723,176.48,176.42,46.5368]
[1641103398527,6.723,176.48,176.41,5.66139214]
[1641103398727,6.723,176.48,176.42,27.66479]
[1641103399329,9.723,176.48,176.42,28.96540321]
[1641103399532,6.723,176.48,176.42,28.96540321]
[1641103400034,6.723,176.48,176.42,27.66479]
[1641103400631,34.38779,176.48,176.39,44.6336]
[1641103401031,3.0,176.45,176.39,44.6336]
[1641103401233,34.38779,176.48,176.38,8.62]
[1641103401632,34.38779,176.48,176.4,1.30055677]
[1641103402335,3.0,176.45,176.4,1.30055677]
[1641103402733,3.0,176.46,176.4,1.30055677]
[1641103402934,3.0,176.46,176.39,1.30055677]
[1641103403834,34.38779,176.48,176.39,1.30055677]
[1641103404234,3.0,176.45,176.39,1.30055677]
[1641103404637,34.38779,176.48,176.39,1.30055677]
[1641103404838,3.0,176.45,176.39,1.30055677]
[1641103405237,34.38779,176.48,176.39,1.30055677]
[1641103405637,2.70530371,176.47,176.39,1.30055677]
[1641103405835,3.0,176.44,176.39,1.30055677]
[1641103406339,34.38779,176.48,176.39,1.30055677]
[1641103406537,3.0,176.45,176.39,1.30055677]
[1641103406837,34.38779,176.48,176.39,1.30055677]
[1641103407041,3.0,176.45,176.39,1.30055677]
[1641103407238,2.70529615,176.47,176.39,1.30055677]
[1641103407441,3.0,176.45,176.39,1.30055677]
[1641103408337,2.70529615,176.47,176.39,1.30055677]
[1641103408637,34.38779,176.48,176.39,1.30055677]
[1641103408839,3.0,176.44,176.39,1.30055677]
[1641103409037,3.0,176.45,176.39,1.30055677]
[1641103410240,3.0,176.45,176.39,13.31943159]
[1641103410443,12.0755548,176.47,176.39,13.31943159]
[1641103410940,14.79294814,176.47,176.39,13.31943159]
[1641103411340,14.79294814,176.47,176.39,12.01887482]
[1641103412141,3.0,176.44,176.39,12.01887482]
[1641103412541,7.567,176.44,176.39,12.01887482]
[1641103412740,4.567,176.44,176.39,12.01887482]
[1641103413440,7.567,176.44,176.39,12.01887482]
[1641103413941,7.567,176.44,176.39,19.48658752]
[1641103414441,4.567,176.44,176.39,19.48658752]
[1641103414640,39.7403448,176.47,176.39,19.48658752]
[1641103414841,3.0,176.45,176.39,19.48658752]
[1641103415343,3.0,176.43,176.39,19.48658752]
[1641103415542,4.356,176.43,176.4,12.01887482]
[1641103416342,4.356,176.43,176.39,19.48658752]
[1641103416542,47.4289,176.46,176.39,19.48658752]
[1641103417142,47.4289,176.46,176.4,12.01887482]
[1641103417342,44.4289,176.46,176.4,12.01887482]
[1641103417743,3.0,176.45,176.4,12.01887482]
[1641103417944,5.71724159,176.45,176.4,12.01887482]
[1641103418345,3.0,176.44,176.4,12.01887482]
[1641103418545,3.0,176.44,176.39,19.48658752]
[1641103418746,3.0,176.45,176.39,19.48658752]
[1641103419447,44.4289,176.46,176.39,19.48658752]
[1641103419649,3.0,176.43,176.39,19.48658752]
[1641103419848,6.424,176.43,176.39,19.48658752]
[1641103420049,6.424,176.43,176.39,13.31943159]
[1641103420248,6.424,176.43,176.39,1.30055677]
[1641103421150,3.0,176.42,176.39,1.30055677]
[1641103421351,6.424,176.43,176.39,1.30055677]
[1641103421752,3.0,176.45,176.39,1.30055677]
[1641103422151,44.4289,176.46,176.39,1.30055677]
[1641103422451,5.71735931,176.44,176.39,19.48656406]
[1641103423052,3.0,176.44,176.39,19.48656406]
[1641103423251,44.4289,176.46,176.39,19.48656406]
[1641103423454,3.0,176.41,176.39,19.48656406]
[1641103423653,3.0,176.42,176.39,19.48656406]
[1641103424254,3.0,176.44,176.39,19.48656406]
[1641103424453,3.0,176.45,176.39,19.48656406]
[1641103425355,44.4289,176.46,176.41,12.01887482]
[1641103425554,3.0,176.45,176.41,12.01887482]
[1641103426758,3.0,176.44,176.41,12.01887482]
[1641103427158,3.0,176.42,176.41,12.01887482]
[1641103427362,3.0,176.43,176.41,12.01887482]
[1641103427559,3.0,176.44,176.41,12.01887482]
[1641103427963,3.0,176.44,176.39,19.48656406]
[1641103428162,44.4289,176.46,176.39,19.48656406]
[1641103428361,3.0,176.45,176.39,19.48656406]
[1641103428763,44.4289,176.46,176.4,12.01887482]
[1641103429462,2.71722079,176.45,176.39,19.48656406]
[1641103430565,2.71722079,176.45,176.39,12.01887482]
[1641103430764,5.71722079,176.45,176.39,12.01887482]
[1641103431369,2.71722079,176.45,176.39,12.01887482]
[1641103431567,27.66479,176.46,176.39,12.01887482]
[1641103431868,3.0,176.44,176.41,12.01887482]
[1641103432468,27.66479,176.46,176.41,12.01887482]
[1641103432669,3.0,176.44,176.41,12.01887482]
[1641103433568,3.0,176.45,176.41,12.01887482]
[1641103433768,27.66479,176.46,176.41,12.01887482]
[1641103434169,27.66479,176.46,176.4,12.01887482]
[1641103434372,3.0,176.45,176.4,12.01887482]
[1641103434570,8.913,176.45,176.4,12.01887482]
[1641103434769,5.913,176.45,176.4,12.01887482]
[1641103434971,3.0,176.43,176.4,12.01887482]
[1641103435572,3.0,176.43,176.39,1.30055677]
[1641103435873,5.913,176.45,176.39,1.30055677]
[1641103437173,3.0,176.42,176.39,1.30055677]
[1641103437979,5.913,176.45,176.39,1.30055677]
[1641103438181,3.0,176.42,176.39,1.30055677]
[1641103438575,3.0,176.42,176.38,19.48656406]
[1641103438775,27.66479,176.46,176.38,19.48656406]
[1641103438978,27.66479,176.46,176.38,66.79546406]
[1641103439179,2.71557179,176.45,176.38,66.79546406]
[1641103439581,2.71557179,176.45,176.39,1.30055677]
[1641103440478,2.71557179,176.46,176.39,1.30055677]
[1641103440884,3.0,176.42,176.39,1.30055677]
[1641103441882,3.0,176.42,176.38,19.48249296]
[1641103443886,3.0,176.42,176.38,13.31943159]
[1641103444486,3.0,176.39,176.38,13.31943159]
[1641103444684,7.292,176.39,176.38,13.31943159]
[1641103445283,10.292,176.39,176.37,6.16306137]
[1641103445485,3.0,176.38,176.37,6.16306137]
[1641103446188,3.0,176.38,176.34,6.16306137]
[1641103446788,4.292,176.39,176.34,6.16306137]
[1641103447187,3.0,176.35,176.32,3.21923063]
[1641103448392,3.0,176.35,176.31,11.82766046]
[1641103449992,4.292,176.39,176.31,11.82766046]
[1641103450193,30.66479,176.4,176.31,11.82766046]
[1641103450393,3.0,176.34,176.31,11.82766046]
[1641103451695,27.66479,176.4,176.31,11.82766046]
[1641103452996,3.0,176.32,176.31,11.82766046]
[1641103453199,11.065,176.32,176.31,6.16306137]
[1641103453497,8.065,176.32,176.29,32.20238175]
[1641103453698,5.065,176.32,176.31,4.0264741]
[1641103454400,3.0,176.33,176.3,4.0264741]
[1641103454600,3.0,176.31,176.3,4.0264741]
[1641103455400,24.22184077,176.34,176.3,4.0264741]
[1641103455602,4.0266316,176.31,176.28,6.828]
[1641103456403,4.0266316,176.34,176.28,34.49279]
[1641103457305,4.0266316,176.33,176.29,6.16605112]
[1641103457504,4.0266316,176.33,176.29,50.10055112]
[1641103457904,4.0266316,176.35,176.29,50.10055112]
[1641103458605,4.0266316,176.35,176.3,6.16605112]
[1641103459406,4.0266316,176.35,176.29,6.16605112]
[1641103459905,4.0266316,176.34,176.29,6.16605112]
[1641103463510,4.0266316,176.33,176.29,6.16605112]
[1641103466712,4.0266316,176.33,176.29,33.83084112]
[1641103467017,4.0266316,176.34,176.29,27.66479]
[1641103467212,4.0266316,176.34,176.29,34.13079]
[1641103467613,4.0266316,176.34,176.3,6.16605112]
[1641103468315,4.0266316,176.34,176.29,34.13079]
[1641103468915,4.0266316,176.33,176.29,34.13079]
[1641103470218,4.0266316,176.34,176.3,6.16463721]
[1641103471422,4.0266316,176.35,176.3,6.16463721]
[1641103472521,4.0266316,176.35,176.34,4.02601873]
[1641103473819,4.0266316,176.35,176.3,6.16463721]
[1641103474521,4.0266316,176.35,176.3,9.16463721]
[1641103475322,43.7926,176.37,176.3,6.16463721]
[1641103475323,4.0266316,176.36,176.3,6.16463721]
[1641103475523,4.0266316,176.36,176.3,10.71563721]
[1641103476324,47.8192316,176.37,176.33,12.07611511]
[1641103476525,4.0266316,176.37,176.33,12.07611511]
[1641103477830,4.0266316,176.37,176.33,18.24075232]
[1641103478431,4.0266316,176.36,176.33,6.16463721]
[1641103479031,4.0266316,176.36,176.32,39.74090511]
[1641103480029,4.0266316,176.37,176.32,39.74090511]
[1641103480633,4.0266316,176.37,176.33,18.24046682]
[1641103481432,4.0266316,176.37,176.32,39.74090511]
[1641103482034,4.0266316,176.38,176.32,27.66479]
[1641103482234,6.007,176.37,176.32,27.66479]
[1641103485641,6.007,176.37,176.33,1.30131508]
[1641103487640,4.0266316,176.39,176.33,1.30131508]
[1641103487840,47.7087316,176.4,176.33,1.30131508]
[1641103489244,4.0266316,176.39,176.33,1.30131508]
[1641103489841,4.0266316,176.38,176.33,1.30131508]
[1641103493143,4.0266316,176.38,176.32,1.30131508]
[1641103493644,4.0266316,176.38,176.32,28.96610508]
[1641103494043,4.0266316,176.38,176.33,4.01338648]
[1641103494745,43.6821,176.4,176.34,4.01338648]
[1641103494746,4.0266316,176.39,176.34,4.01338648]
[1641103495346,2.72012078,176.39,176.37,4.01338648]
[1641103496145,2.72012078,176.4,176.37,4.01338648]
[1641103499557,2.72012078,176.4,176.36,4.01338648]
[1641103502355,5.72012078,176.4,176.36,4.01338648]
[1641103502554,2.72012078,176.4,176.36,4.01338648]
[1641103502755,2.72012078,176.39,176.36,4.01338648]
[1641103503454,2.72012078,176.4,176.36,4.01338648]
[1641103505760,5.72012078,176.4,176.36,4.01338648]
[1641103505959,2.72012078,176.4,176.36,4.01338648]
[1641103506261,2.72012078,176.39,176.36,4.01338648]
[1641103506859,2.72012078,176.4,176.36,4.01338648]
[1641103507061,5.72012078,176.4,176.36,4.01338648]
[1641103507664,2.72012078,176.39,176.35,4.01338648]
[1641103508562,2.72012078,176.39,176.36,4.01338648]
[1641103509965,2.72012078,176.39,176.35,4.01338648]
[1641103510866,4.02335073,176.36,176.35,4.01338648]
[1641103511066,9.40735073,176.36,176.35,4.01338648]
[1641103512869,9.40735073,176.36,176.33,1.30131508]
[1641103513671,9.40735073,176.36,176.35,4.02504497]
[1641103516676,27.66479,176.39,176.32,3.22059918]
[1641103517277,4.02498615,176.36,176.35,4.02498615]
[1641103518077,31.68921344,176.39,176.34,12.07611511]
[1641103519178,27.66479,176.39,176.38,4.02438363]
[1641103519979,31.6850727,176.39,176.37,4.0202827]
[1641103520882,27.66479,176.39,176.34,4.30510421]
[1641103521082,27.66479,176.39,176.35,13.38121932]
[1641103521781,27.66479,176.39,176.35,16.38121932]
[1641103521980,21.22524593,176.39,176.35,13.38121932]
[1641103522184,4.01993745,176.41,176.36,1.30510421]
[1641103522382,4.01993745,176.41,176.36,49.49280421]
[1641103523083,4.01993745,176.41,176.39,4.01993041]
[1641103524086,4.01993745,176.41,176.39,5.32503462]
[1641103526887,4.01993745,176.41,176.39,4.01993041]
[1641103527485,4.01993745,176.41,176.39,5.32503462]
[1641103529288,9.85993745,176.41,176.39,5.32503462]
[1641103530387,12.85993745,176.41,176.39,4.01993041]
[1641103530989,9.85993745,176.41,176.39,4.01993041]
[1641103531190,12.85993745,176.41,176.39,4.01993041]
[1641103531390,2.72064194,176.4,176.36,4.01993041]
[1641103531893,5.72064194,176.4,176.36,4.01993041]
[1641103532090,17.78149004,176.4,176.36,4.01993041]
[1641103532991,2.72064194,176.39,176.36,4.01993041]
[1641103534892,14.78149004,176.39,176.35,4.01993041]
[1641103539495,4.0130917,176.38,176.33,5.32503462]
[1641103549514,4.0130917,176.38,176.33,32.98982462]
[1641103550114,4.0130917,176.38,176.33,5.32503462]
[1641103550315,14.78149004,176.39,176.35,4.01993041]
[1641103552421,3.0,176.38,176.35,4.01993041]
[1641103552621,17.78149004,176.39,176.35,4.01993041]
[1641103553521,17.78149004,176.39,176.34,1.30510421]
[1641103553522,14.78149004,176.38,176.34,5.32503462]
[1641103554219,12.0608481,176.38,176.34,5.32503462]
[1641103555421,12.0608481,176.38,176.34,4.01993041]
[1641103557128,14.78149004,176.39,176.33,4.01993041]
[1641103560034,14.78149004,176.39,176.35,27.66479]
[1641103560236,2.72064194,176.39,176.35,31.68472041]
[1641103560634,2.72064194,176.39,176.35,4.01993041]
[1641103561237,2.72064194,176.39,176.34,4.01993041]
[1641103561437,7.57964194,176.39,176.34,4.01993041]
[1641103561936,19.64049004,176.39,176.33,5.32316287]
[1641103562535,2.72064194,176.38,176.33,5.32316287]
[1641103565237,2.72064194,176.38,176.35,4.01993041]
[1641103565837,4.02076097,176.37,176.35,4.01993041]
[1641103567643,8.63976097,176.37,176.35,4.01993041]
[1641103568947,4.02076097,176.36,176.35,4.01993041]
[1641103570745,2.72082956,176.39,176.35,4.01993041]
[1641103570947,14.78167766,176.39,176.35,4.01993041]
[1641103571851,2.72082956,176.39,176.36,4.01993041]
[1641103574860,14.78167766,176.39,176.35,4.01993041]
[1641103575059,20.78267766,176.39,176.35,4.01993041]
[1641103575561,2.72082956,176.38,176.35,4.01993041]
[1641103579866,14.78167766,176.39,176.35,4.01993041]
[1641103582669,12.0608481,176.39,176.32,51.32691642]
[1641103582869,78.20899,176.4,176.32,51.32691642]
[1641103583268,75.20899,176.4,176.32,48.1062]
[1641103583468,78.20899,176.4,176.32,48.1062]
[1641103583868,14.79837362,176.39,176.35,4.02580649]
[1641103584369,78.20899,176.4,176.32,48.1062]
[1641103584869,50.5442,176.4,176.32,48.1062]
[1641103585073,2.71787327,176.39,176.34,4.02124923]
[1641103585270,9.28087327,176.39,176.34,4.02124923]
[1641103585574,36.94566327,176.39,176.34,4.02124923]
[1641103585777,2.71788246,176.38,176.32,48.1062]
[1641103586374,27.66479,176.39,176.34,4.02125449]
[1641103586973,27.66479,176.39,176.35,4.0258067]
[1641103587175,2.72095439,176.38,176.35,4.0258067]
[1641103587575,2.72095439,176.38,176.35,31.6905967]
[1641103588077,27.66479,176.44,176.35,27.66479]
[1641103588980,12.07530042,176.42,176.38,4.02510014]
[1641103589880,12.65738308,176.43,176.36,48.2732]
[1641103590080,4.332,176.42,176.37,1.30492182]
[1641103590479,7.332,176.42,176.37,1.30492182]
[1641103590780,2.72017718,176.41,176.38,4.02516491]
[1641103591181,7.332,176.42,176.36,48.2732]
[1641103591380,7.332,176.42,176.37,1.30491765]
[1641103591581,27.66479,176.41,176.37,1.30491765]
[1641103592081,30.38514333,176.41,176.38,4.02526028]
[1641103592481,27.66479,176.41,176.36,48.2732]
[1641103592683,14.79762049,176.4,176.36,52.2988228]
[1641103593481,27.66479,176.41,176.36,48.2732]
[1641103594383,14.7975481,176.4,176.36,52.29880514]
[1641103594985,27.66479,176.41,176.36,48.2732]
[1641103595785,3.0,176.4,176.36,48.2732]
[1641103595984,3.0,176.39,176.36,48.2732]
[1641103596185,30.66479,176.41,176.32,15.29634185]
[1641103596386,3.0,176.39,176.36,4.0256006]
[1641103596887,2.72102636,176.38,176.35,4.02587213]
[1641103597086,8.43802636,176.38,176.35,4.02587213]
[1641103597686,5.717,176.38,176.35,4.02587213]
[1641103597888,2.72105815,176.37,176.32,3.22022674]
[1641103598388,5.717,176.38,176.32,3.22022674]
[1641103598389,5.717,176.38,176.35,4.02590382]
[1641103599187,5.717,176.38,176.32,3.22022674]
[1641103599387,2.7210938,176.37,176.32,3.22022674]
[1641103599790,2.7210938,176.37,176.31,91.52753185]
[1641103599990,2.7210938,176.37,176.31,63.86274185]
[1641103600190,8.717,176.38,176.31,63.86274185]
[1641103600390,8.717,176.38,176.35,4.02593992]
[1641103600689,8.717,176.38,176.31,63.86274185]
[1641103600892,2.72111913,176.37,176.32,1.30483733]
[1641103601690,5.717,176.38,176.35,4.02595356]
[1641103601991,60.68281976,176.39,176.35,4.02595356]
[1641103602192,2.72111283,176.37,176.32,1.3048379]
[1641103602391,7.42411283,176.37,176.32,1.3048379]
[1641103602892,4.703,176.37,176.31,63.86274185]
[1641103603095,2.72122304,176.36,176.34,4.02605092]
[1641103603494,4.703,176.37,176.31,51.78662674]
[1641103603692,4.703,176.37,176.33,4.02232723]
[1641103604195,2.71870003,176.36,176.31,51.78662674]
[1641103604895,4.703,176.37,176.31,51.78662674]
[1641103605095,4.703,176.37,176.33,4.02231342]
[1641103606500,7.703,176.37,176.31,3.22022674]
[1641103606695,3.0,176.35,176.34,4.02232029]
[1641103606896,5.71870814,176.36,176.31,3.22022674]
[1641103607095,5.71870814,176.36,176.3,12.07611511]
[1641103607297,14.78696966,176.35,176.27,31.7369]
[1641103607496,43.66276966,176.35,176.27,31.7369]
[1641103607697,46.66276966,176.35,176.27,31.7369]
[1641103607996,27.66479,176.32,176.28,1.30325898]
[1641103608197,34.37079,176.32,176.28,1.30325898]
[1641103608699,27.92752542,176.32,176.27,31.7369]
[1641103608899,27.92752542,176.32,176.29,1.30326407]
[1641103609702,27.92752542,176.32,176.28,1.30326407]
[1641103613402,6.706,176.32,176.28,1.30326407]
[1641103613701,3.0,176.34,176.28,1.30326407]
[1641103614103,27.66479,176.32,176.28,1.30326407]
[1641103614301,4.219,176.33,176.28,1.30326407]
[1641103614902,2.71982061,176.32,176.28,1.30326407]
[1641103616802,30.38461061,176.32,176.28,1.30326407]
[1641103617605,2.71982061,176.31,176.28,1.30326407]
[1641103618706,27.66479,176.32,176.28,1.30326407]
[1641103619412,2.72290225,176.31,176.28,1.30326407]
[1641103619810,3.0,176.3,176.28,1.30326407]
[1641103620011,3.0,176.29,176.28,1.30326407]
[1641103620213,9.484,176.29,176.28,1.30326407]
[1641103620412,9.484,176.29,176.24,15.29634185]
[1641103620614,3.0,176.27,176.24,12.07611511]
[1641103620813,27.66479,176.25,176.24,12.07611511]
[1641103621012,34.56079,176.25,176.24,12.07611511]
[1641103621312,34.56079,176.25,176.2,12.07611511]
[1641103622213,34.56079,176.25,176.18,3.22275514]
[1641103622714,37.56079,176.25,176.18,3.22275514]
[1641103623315,3.0,176.24,176.18,3.22275514]
[1641103624516,3.0,176.24,176.17,34.87335514]
[1641103625416,6.896,176.25,176.17,34.87335514]
[1641103626017,9.484,176.29,176.17,34.87335514]
[1641103626917,3.0,176.28,176.17,34.87335514]
[1641103627119,27.66479,176.27,176.17,34.87335514]
[1641103627320,6.484,176.29,176.18,3.0]
[1641103627517,3.0,176.3,176.18,3.0]
[1641103627718,33.6282,176.31,176.18,3.0]
[1641103628618,30.6282,176.31,176.19,3.0]
[1641103628819,30.6282,176.31,176.19,8.664]
[1641103629119,30.6282,176.31,176.21,27.66479]
[1641103629319,33.6282,176.31,176.21,27.66479]
[1641103629522,3.0,176.3,176.21,27.66479]
[1641103629723,3.0,176.29,176.21,27.66479]
[1641103629925,3.0,176.29,176.17,34.87335514]
[1641103630522,3.0,176.3,176.17,37.87335514]
[1641103630725,33.6282,176.31,176.17,37.87335514]
[1641103631125,27.66479,176.29,176.19,27.66479]
[1641103633131,30.6282,176.31,176.19,27.66479]
[1641103633330,30.6282,176.31,176.19,32.55979]
[1641103634031,12.06698168,176.3,176.21,12.07611511]
[1641103634233,12.06698168,176.3,176.22,5.66764906]
[1641103634444,32.20238175,176.34,176.22,8.66764906]
[1641103634632,32.20238175,176.34,176.26,3.0]
[1641103634837,12.07124421,176.35,176.29,5.66540139]
[1641103635034,12.07124421,176.35,176.34,27.66479]
[1641103635234,9.16704421,176.35,176.34,32.65679]
[1641103635634,31.6616,176.43,176.34,35.65679]
[1641103635834,31.6616,176.43,176.34,32.65679]
[1641103636035,9.93413261,176.42,176.34,32.65679]
[1641103636333,9.93413261,176.42,176.34,27.66479]
[1641103637135,27.66479,176.41,176.34,27.66479]
[1641103637936,9.93413261,176.4,176.34,27.66479]
[1641103638436,9.93413261,176.42,176.34,27.66479]
[1641103638634,9.93413261,176.42,176.34,36.37979]
[1641103639036,9.93413261,176.42,176.34,33.37979]
[1641103639236,9.93413261,176.44,176.34,33.37979]
[1641103640638,3.0,176.42,176.34,33.37979]
[1641103640839,3.0,176.4,176.29,3.22059471]
[1641103641041,27.66479,176.34,176.29,3.22059471]
[1641103641241,31.96979,176.34,176.29,3.22059471]
[1641103641442,31.96979,176.34,176.25,31.053]
[1641103642140,31.96979,176.34,176.24,27.66479]
[1641103643542,31.96979,176.34,176.25,6.16119453]
[1641103644545,31.96979,176.34,176.25,11.82771953]
[1641103644747,27.66479,176.36,176.28,3.0]
[1641103644947,31.1942,176.39,176.28,9.524]
[1641103645146,31.1942,176.39,176.32,27.66479]
[1641103645348,31.1942,176.39,176.32,34.29079]
[1641103645749,27.66479,176.42,176.32,34.29079]
[1641103645949,30.2847,176.43,176.32,34.29079]
[1641103646249,9.92919929,176.41,176.32,34.29079]
[1641103647051,9.92919929,176.42,176.32,34.29079]
[1641103648349,9.92919929,176.42,176.32,37.29079]
[1641103648649,9.92919929,176.42,176.32,34.29079]